Department family,Entity,Date,Expense Type,Expense area,Supplier,Transaction number,AP Amount (�)
Department of Health,NHS Barnsley CCG,31/07/2019,C&M-APMS Contract Value,PRC DELEGATED CO-COMMISSIONING,BARNSLEY HEALTHCARE FEDERATION,28012624,"27,149.22"
Department of Health,NHS Barnsley CCG,31/07/2019,C&M-APMS OOH Opt Outs,PRC DELEGATED CO-COMMISSIONING,BARNSLEY HEALTHCARE FEDERATION,28012624,9.61
Department of Health,NHS Barnsley CCG,31/07/2019,C&M-APMS PCN DES Participation,PRC DELEGATED CO-COMMISSIONING,BARNSLEY HEALTHCARE FEDERATION,28012624,"1,576.89"
Department of Health,NHS Barnsley CCG,31/07/2019,C&M-APMS Prem Actual Rent,PRC DELEGATED CO-COMMISSIONING,BARNSLEY HEALTHCARE FEDERATION,28012624,"1,310.42"
Department of Health,NHS Barnsley CCG,31/07/2019,C&M-APMS Prem Rates,PRC DELEGATED CO-COMMISSIONING,BARNSLEY HEALTHCARE FEDERATION,28012624,500.00
Department of Health,NHS Barnsley CCG,31/07/2019,C&M-APMS QOF Aspiration,PRC DELEGATED CO-COMMISSIONING,BARNSLEY HEALTHCARE FEDERATION,28012624,"2,347.18"
Department of Health,NHS Barnsley CCG,31/07/2019,C&M-APMS Contract Value,PRC DELEGATED CO-COMMISSIONING,BARNSLEY HEALTHCARE FEDERATION,28012626,"31,813.93"
Department of Health,NHS Barnsley CCG,31/07/2019,C&M-APMS OOH Opt Outs,PRC DELEGATED CO-COMMISSIONING,BARNSLEY HEALTHCARE FEDERATION,28012626,1.76
Department of Health,NHS Barnsley CCG,31/07/2019,C&M-APMS PCN DES Participation,PRC DELEGATED CO-COMMISSIONING,BARNSLEY HEALTHCARE FEDERATION,28012626,"1,847.79"
Department of Health,NHS Barnsley CCG,31/07/2019,C&M-APMS Prem Actual Rent,PRC DELEGATED CO-COMMISSIONING,BARNSLEY HEALTHCARE FEDERATION,28012626,"2,150.00"
Department of Health,NHS Barnsley CCG,31/07/2019,C&M-APMS Prem Healthcentre Rent,PRC DELEGATED CO-COMMISSIONING,BARNSLEY HEALTHCARE FEDERATION,28012626,"7,567.71"
Department of Health,NHS Barnsley CCG,31/07/2019,C&M-APMS Prem Rates,PRC DELEGATED CO-COMMISSIONING,BARNSLEY HEALTHCARE FEDERATION,28012626,503.00
Department of Health,NHS Barnsley CCG,31/07/2019,C&M-APMS Prem Water Rates,PRC DELEGATED CO-COMMISSIONING,BARNSLEY HEALTHCARE FEDERATION,28012626,164.41
Department of Health,NHS Barnsley CCG,31/07/2019,C&M-PMS QOF Aspiration,PRC DELEGATED CO-COMMISSIONING,BARNSLEY HEALTHCARE FEDERATION,28012626,"2,244.77"
Department of Health,NHS Barnsley CCG,31/07/2019,C&M-APMS Contract Value,PRC DELEGATED CO-COMMISSIONING,BARNSLEY HEALTHCARE FEDERATION,28012628,"28,430.97"
Department of Health,NHS Barnsley CCG,31/07/2019,C&M-APMS PCN DES Participation,PRC DELEGATED CO-COMMISSIONING,BARNSLEY HEALTHCARE FEDERATION,28012628,"1,627.56"
Department of Health,NHS Barnsley CCG,31/07/2019,C&M-APMS Prem Actual Rent,PRC DELEGATED CO-COMMISSIONING,BARNSLEY HEALTHCARE FEDERATION,28012628,"6,200.00"
Department of Health,NHS Barnsley CCG,31/07/2019,C&M-APMS Prem Rates,PRC DELEGATED CO-COMMISSIONING,BARNSLEY HEALTHCARE FEDERATION,28012628,"1,235.00"
Department of Health,NHS Barnsley CCG,31/07/2019,C&M-PMS QOF Aspiration,PRC DELEGATED CO-COMMISSIONING,BARNSLEY HEALTHCARE FEDERATION,28012628,"2,495.50"
Department of Health,NHS Barnsley CCG,31/07/2019,C&M-GP PRACTICE REVENUE - PCTF,GP FORWARD VIEW,BARNSLEY HEALTHCARE FEDERATION,28141028,"140,527.50"
Department of Health,NHS Barnsley CCG,31/07/2019,Clinical&Medical-Commercial Sector,OUT OF HOURS,BARNSLEY HEALTHCARE FEDERATION,28141029,"120,520.57"
Department of Health,NHS Barnsley CCG,31/07/2019,C&M-PMS Practice Transformational Support,COMMISSIONING SCHEMES,BARNSLEY HEALTHCARE FEDERATION,28141030,"54,166.67"
Department of Health,NHS Barnsley CCG,31/07/2019,C&M-PMS Contract Value,PRC DELEGATED CO-COMMISSIONING,BARNSLEY HEALTHCARE FEDERATION CIC (GOLDTHORPE),28018645,"41,822.39"
Department of Health,NHS Barnsley CCG,31/07/2019,C&M-PMS PCN DES Participation,PRC DELEGATED CO-COMMISSIONING,BARNSLEY HEALTHCARE FEDERATION CIC (GOLDTHORPE),28018645,"2,413.14"
Department of Health,NHS Barnsley CCG,31/07/2019,C&M-PMS Prem Healthcentre Rent,PRC DELEGATED CO-COMMISSIONING,BARNSLEY HEALTHCARE FEDERATION CIC (GOLDTHORPE),28018645,"12,099.61"
Department of Health,NHS Barnsley CCG,31/07/2019,C&M-PMS QOF Aspiration,PRC DELEGATED CO-COMMISSIONING,BARNSLEY HEALTHCARE FEDERATION CIC (GOLDTHORPE),28018645,"3,008.69"
Department of Health,NHS Barnsley CCG,31/07/2019,Clinical&Medical-Othe Public Sector,CHILD AND ADOLESCENT MENTAL HEALTH,BARNSLEY METROPOLITAN BOROUGH COUNCIL,27910235,"29,332.00"
Department of Health,NHS Barnsley CCG,31/07/2019,Clinical&Medical-Othe Public Sector,COMMISSIONING - NON ACUTE,BARNSLEY METROPOLITAN BOROUGH COUNCIL,27910235,"193,834.00"
Department of Health,NHS Barnsley CCG,31/07/2019,Clinical&Medical-Othe Public Sector,COMMUNITY SERVICES,BARNSLEY METROPOLITAN BOROUGH COUNCIL,27910235,"66,317.00"
Department of Health,NHS Barnsley CCG,31/07/2019,Local AuthorityRevenue-Non-Contract,COMMUNITY SERVICES,BARNSLEY METROPOLITAN BOROUGH COUNCIL,27910235,"-4,875.00"
Department of Health,NHS Barnsley CCG,31/07/2019,Soc Care-Other Soc Care,COMMUNITY SERVICES,BARNSLEY METROPOLITAN BOROUGH COUNCIL,27910235,"137,586.00"
Department of Health,NHS Barnsley CCG,31/07/2019,Soc Care-Re-ablement services,COMMUNITY SERVICES,BARNSLEY METROPOLITAN BOROUGH COUNCIL,27910235,"195,691.00"
Department of Health,NHS Barnsley CCG,31/07/2019,Social Care-Res Long Stay Exp,LONG TERM CONDITIONS,BARNSLEY METROPOLITAN BOROUGH COUNCIL,27910235,"433,880.00"
Department of Health,NHS Barnsley CCG,31/07/2019,Social Care-Res Short Stay Exp,COMMUNITY SERVICES,BARNSLEY METROPOLITAN BOROUGH COUNCIL,27910235,"68,708.00"
Department of Health,NHS Barnsley CCG,31/07/2019,Cont Care- Palliative Care,CHC ADULT FULLY FUNDED,BARNSLEY METROPOLITAN BOROUGH COUNCIL,28260750,141.90
Department of Health,NHS Barnsley CCG,31/07/2019,Cont Care-Funded Nursing Care Allow,FUNDED NURSING CARE,BARNSLEY METROPOLITAN BOROUGH COUNCIL,28260750,"137,115.96"
Department of Health,NHS Barnsley CCG,31/07/2019,Cont Care-Interim Funding(Pre Panel),CHC ADULT FULLY FUNDED,BARNSLEY METROPOLITAN BOROUGH COUNCIL,28260750,"1,821.17"
Department of Health,NHS Barnsley CCG,31/07/2019,Cont Care-Interim Funding(Pre Panel),FUNDED NURSING CARE,BARNSLEY METROPOLITAN BOROUGH COUNCIL,28260750,"4,139.00"
Department of Health,NHS Barnsley CCG,31/07/2019,Clinical&Medical-Othe Public Sector,CHILD AND ADOLESCENT MENTAL HEALTH,BARNSLEY METROPOLITAN BOROUGH COUNCIL,28267134,"36,832.00"
Department of Health,NHS Barnsley CCG,31/07/2019,Clinical&Medical-Othe Public Sector,COMMISSIONING - NON ACUTE,BARNSLEY METROPOLITAN BOROUGH COUNCIL,28267134,"193,835.00"
Department of Health,NHS Barnsley CCG,31/07/2019,Clinical&Medical-Othe Public Sector,COMMUNITY SERVICES,BARNSLEY METROPOLITAN BOROUGH COUNCIL,28267134,"32,984.00"
Department of Health,NHS Barnsley CCG,31/07/2019,Clinical&Medical-Voluntary Sector,COMMUNITY SERVICES,BARNSLEY METROPOLITAN BOROUGH COUNCIL,28267134,"-260,247.00"
Department of Health,NHS Barnsley CCG,31/07/2019,Clinical&Medical-Voluntary Sector,PROGRAMME PROJECTS,BARNSLEY METROPOLITAN BOROUGH COUNCIL,28267134,"-99,690.00"
Department of Health,NHS Barnsley CCG,31/07/2019,Contr Other External,PROGRAMME PROJECTS,BARNSLEY METROPOLITAN BOROUGH COUNCIL,28267134,"-41,667.00"
Department of Health,NHS Barnsley CCG,31/07/2019,Local AuthorityRevenue-Non-Contract,COMMUNITY SERVICES,BARNSLEY METROPOLITAN BOROUGH COUNCIL,28267134,"-4,875.00"
Department of Health,NHS Barnsley CCG,31/07/2019,Soc Care-Other Soc Care,COMMUNITY SERVICES,BARNSLEY METROPOLITAN BOROUGH COUNCIL,28267134,"137,586.00"
Department of Health,NHS Barnsley CCG,31/07/2019,Soc Care-Re-ablement services,COMMUNITY SERVICES,BARNSLEY METROPOLITAN BOROUGH COUNCIL,28267134,"195,691.00"
Department of Health,NHS Barnsley CCG,31/07/2019,Social Care-Res Long Stay Exp,LONG TERM CONDITIONS,BARNSLEY METROPOLITAN BOROUGH COUNCIL,28267134,"433,881.00"
Department of Health,NHS Barnsley CCG,31/07/2019,Social Care-Res Short Stay Exp,COMMUNITY SERVICES,BARNSLEY METROPOLITAN BOROUGH COUNCIL,28267134,"68,708.00"
Department of Health,NHS Barnsley CCG,31/07/2019,C&M-PMS PCN DES Clinical Director,PRC DELEGATED CO-COMMISSIONING,BHF - PCN,28185099,"35,182.63"
Department of Health,NHS Barnsley CCG,31/07/2019,C&M-PMS PCN DES Clinical Director,PRC DELEGATED CO-COMMISSIONING,BHF - PCN,28185239,"-35,182.63"
Department of Health,NHS Barnsley CCG,31/07/2019,C&M-PMS PCN DES Clinical Director,PRC DELEGATED CO-COMMISSIONING,BHF - PCN,28185243,"-35,182.63"
Department of Health,NHS Barnsley CCG,31/07/2019,C&M-PMS PCN DES Clinical Director,PRC DELEGATED CO-COMMISSIONING,BHF - PCN,28185309,"35,182.63"
Department of Health,NHS Barnsley CCG,31/07/2019,C&M-APMS DES Extended Hours Access,PRC DELEGATED CO-COMMISSIONING,BHF - PCN,28185370,"1,142.69"
Department of Health,NHS Barnsley CCG,31/07/2019,C&M-APMS PCN DES Clinical Director,PRC DELEGATED CO-COMMISSIONING,BHF - PCN,28185370,712.58
Department of Health,NHS Barnsley CCG,31/07/2019,C&M-GMS DES Extended Hours Access,PRC DELEGATED CO-COMMISSIONING,BHF - PCN,28185370,"11,003.45"
Department of Health,NHS Barnsley CCG,31/07/2019,C&M-GMS PCN DES Clinical Director,PRC DELEGATED CO-COMMISSIONING,BHF - PCN,28185370,"6,861.73"
Department of Health,NHS Barnsley CCG,31/07/2019,C&M-PMS DES Extended Hours Access,PRC DELEGATED CO-COMMISSIONING,BHF - PCN,28185370,"11,825.15"
Department of Health,NHS Barnsley CCG,31/07/2019,C&M-PMS PCN DES Clinical Director,PRC DELEGATED CO-COMMISSIONING,BHF - PCN,28185370,"7,374.13"
Department of Health,NHS Barnsley CCG,31/07/2019,Clinical&Medical-Commercial Sector,ACUTE COMMISSIONING,BMI HEALTHCARE LTD,27935647,"29,370.48"
Department of Health,NHS Barnsley CCG,31/07/2019,C&M-GMS LES Medicine Management,COMMISSIONING SCHEMES,NHS BARNSLEY CCG GP PRACTICE,27935620,"64,668.00"
Department of Health,NHS Barnsley CCG,31/07/2019,C&M-GMS GP Statutory Levy,PRC DELEGATED CO-COMMISSIONING,NHS BARNSLEY CCG GP PRACTICE,28254818,-377.37
Department of Health,NHS Barnsley CCG,31/07/2019,C&M-GMS Voluntary Levy,PRC DELEGATED CO-COMMISSIONING,NHS BARNSLEY CCG GP PRACTICE,28254818,-66.04
Department of Health,NHS Barnsley CCG,31/07/2019,ME-GMS GP Pension EEs,PRC DELEGATED CO-COMMISSIONING,NHS BARNSLEY CCG GP PRACTICE,28254818,"-15,503.43"
Department of Health,NHS Barnsley CCG,31/07/2019,ME-GMS GP Pension ERs Adjustments,PRC DELEGATED CO-COMMISSIONING,NHS BARNSLEY CCG GP PRACTICE,28254818,"-15,434.46"
Department of Health,NHS Barnsley CCG,31/07/2019,C&M-GMS Global Sum,PRC DELEGATED CO-COMMISSIONING,NHS BARNSLEY CCG GP PRACTICE,28254819,"95,212.63"
Department of Health,NHS Barnsley CCG,31/07/2019,C&M-GMS PCN DES Participation,PRC DELEGATED CO-COMMISSIONING,NHS BARNSLEY CCG GP PRACTICE,28254819,"5,838.27"
Department of Health,NHS Barnsley CCG,31/07/2019,C&M-GMS Prem Actual Rent,PRC DELEGATED CO-COMMISSIONING,NHS BARNSLEY CCG GP PRACTICE,28254819,"12,500.00"
Department of Health,NHS Barnsley CCG,31/07/2019,C&M-GMS Prem Healthcentre Rent,PRC DELEGATED CO-COMMISSIONING,NHS BARNSLEY CCG GP PRACTICE,28254819,"3,276.92"
Department of Health,NHS Barnsley CCG,31/07/2019,C&M-GMS QOF Aspiration,PRC DELEGATED CO-COMMISSIONING,NHS BARNSLEY CCG GP PRACTICE,28254819,"9,600.36"
Department of Health,NHS Barnsley CCG,31/07/2019,Clinical&Medical-Commercial Sector,ACUTE COMMISSIONING,CLAREMONT HOSPITAL,28047526,"33,040.00"
Department of Health,NHS Barnsley CCG,31/07/2019,Clinical&Medical-Commercial Sector,ACUTE COMMISSIONING,CLAREMONT HOSPITAL,28087329,"28,350.00"
Department of Health,NHS Barnsley CCG,31/07/2019,Soc Care-Bed-Based Int Care Servs,INTERMEDIATE CARE,CROWN CARE (IV) LTD,28087004,"25,928.57"
Department of Health,NHS Barnsley CCG,31/07/2019,Clinical&Medical-Commercial Sector,LEARNING DIFFICULTIES,CYGNET (DH) LTD,28223088,"25,920.00"
Department of Health,NHS Barnsley CCG,31/07/2019,C&M-GMS DES Minor Surgery,PRC DELEGATED CO-COMMISSIONING,NHS BARNSLEY CCG GP PRACTICE,28249989,"4,517.72"
Department of Health,NHS Barnsley CCG,31/07/2019,C&M-GMS Global Sum,PRC DELEGATED CO-COMMISSIONING,NHS BARNSLEY CCG GP PRACTICE,28249989,"86,023.52"
Department of Health,NHS Barnsley CCG,31/07/2019,C&M-GMS PCN DES Participation,PRC DELEGATED CO-COMMISSIONING,NHS BARNSLEY CCG GP PRACTICE,28249989,"5,270.85"
Department of Health,NHS Barnsley CCG,31/07/2019,C&M-GMS Prem Healthcentre Rent,PRC DELEGATED CO-COMMISSIONING,NHS BARNSLEY CCG GP PRACTICE,28249989,"27,043.66"
Department of Health,NHS Barnsley CCG,31/07/2019,C&M-GMS QOF Aspiration,PRC DELEGATED CO-COMMISSIONING,NHS BARNSLEY CCG GP PRACTICE,28249989,"8,149.07"
Department of Health,NHS Barnsley CCG,31/07/2019,C&M-PMS Contract Value,PRC DELEGATED CO-COMMISSIONING,NHS BARNSLEY CCG GP PRACTICE,28012602,"97,747.63"
Department of Health,NHS Barnsley CCG,31/07/2019,C&M-PMS Out of Hours Opt Outs,PRC DELEGATED CO-COMMISSIONING,NHS BARNSLEY CCG GP PRACTICE,28012602,11.93
Department of Health,NHS Barnsley CCG,31/07/2019,C&M-PMS PCN DES Participation,PRC DELEGATED CO-COMMISSIONING,NHS BARNSLEY CCG GP PRACTICE,28012602,"5,433.42"
Department of Health,NHS Barnsley CCG,31/07/2019,C&M-PMS PCO Other,PRC DELEGATED CO-COMMISSIONING,NHS BARNSLEY CCG GP PRACTICE,28012602,646.50
Department of Health,NHS Barnsley CCG,31/07/2019,C&M-PMS Prem Healthcentre Rent,PRC DELEGATED CO-COMMISSIONING,NHS BARNSLEY CCG GP PRACTICE,28012602,"18,178.19"
Department of Health,NHS Barnsley CCG,31/07/2019,C&M-PMS Prem Notional Rent,PRC DELEGATED CO-COMMISSIONING,NHS BARNSLEY CCG GP PRACTICE,28012602,"1,987.50"
Department of Health,NHS Barnsley CCG,31/07/2019,C&M-PMS Prem Rates,PRC DELEGATED CO-COMMISSIONING,NHS BARNSLEY CCG GP PRACTICE,28012602,360.61
Department of Health,NHS Barnsley CCG,31/07/2019,C&M-PMS QOF Aspiration,PRC DELEGATED CO-COMMISSIONING,NHS BARNSLEY CCG GP PRACTICE,28012602,"10,450.25"
Department of Health,NHS Barnsley CCG,31/07/2019,C&M-PMS Contract Value,PRC DELEGATED CO-COMMISSIONING,NHS BARNSLEY CCG GP PRACTICE,28012605,"59,475.64"
Department of Health,NHS Barnsley CCG,31/07/2019,C&M-PMS PCN DES Participation,PRC DELEGATED CO-COMMISSIONING,NHS BARNSLEY CCG GP PRACTICE,28012605,"3,254.49"
Department of Health,NHS Barnsley CCG,31/07/2019,C&M-PMS Prem Healthcentre Rent,PRC DELEGATED CO-COMMISSIONING,NHS BARNSLEY CCG GP PRACTICE,28012605,"21,474.28"
Department of Health,NHS Barnsley CCG,31/07/2019,C&M-PMS QOF Aspiration,PRC DELEGATED CO-COMMISSIONING,NHS BARNSLEY CCG GP PRACTICE,28012605,"5,320.13"
Department of Health,NHS Barnsley CCG,31/07/2019,C&M-GMS DES Minor Surgery,PRC DELEGATED CO-COMMISSIONING,NHS BARNSLEY CCG GP PRACTICE,28249991,"4,262.00"
Department of Health,NHS Barnsley CCG,31/07/2019,C&M-GMS Global Sum,PRC DELEGATED CO-COMMISSIONING,NHS BARNSLEY CCG GP PRACTICE,28249991,"76,735.90"
Department of Health,NHS Barnsley CCG,31/07/2019,C&M-GMS PCN DES Participation,PRC DELEGATED CO-COMMISSIONING,NHS BARNSLEY CCG GP PRACTICE,28249991,"4,722.39"
Department of Health,NHS Barnsley CCG,31/07/2019,C&M-GMS PCO Other,PRC DELEGATED CO-COMMISSIONING,NHS BARNSLEY CCG GP PRACTICE,28249991,614.90
Department of Health,NHS Barnsley CCG,31/07/2019,C&M-GMS Prem Notional Rent,PRC DELEGATED CO-COMMISSIONING,NHS BARNSLEY CCG GP PRACTICE,28249991,"4,658.33"
Department of Health,NHS Barnsley CCG,31/07/2019,C&M-GMS Prem Rates,PRC DELEGATED CO-COMMISSIONING,NHS BARNSLEY CCG GP PRACTICE,28249991,"1,318.00"
Department of Health,NHS Barnsley CCG,31/07/2019,C&M-GMS QOF Aspiration,PRC DELEGATED CO-COMMISSIONING,NHS BARNSLEY CCG GP PRACTICE,28249991,"8,124.94"
Department of Health,NHS Barnsley CCG,31/07/2019,C&M-PMS Contract Value,PRC DELEGATED CO-COMMISSIONING,NHS BARNSLEY CCG GP PRACTICE,28012608,"135,717.64"
Department of Health,NHS Barnsley CCG,31/07/2019,C&M-PMS PCN DES Participation,PRC DELEGATED CO-COMMISSIONING,NHS BARNSLEY CCG GP PRACTICE,28012608,"7,800.60"
Department of Health,NHS Barnsley CCG,31/07/2019,C&M-PMS Prem Actual Rent,PRC DELEGATED CO-COMMISSIONING,NHS BARNSLEY CCG GP PRACTICE,28012608,"24,600.00"
Department of Health,NHS Barnsley CCG,31/07/2019,C&M-PMS Prem Notional Rent,PRC DELEGATED CO-COMMISSIONING,NHS BARNSLEY CCG GP PRACTICE,28012608,"6,333.33"
Department of Health,NHS Barnsley CCG,31/07/2019,C&M-PMS Prem Rates,PRC DELEGATED CO-COMMISSIONING,NHS BARNSLEY CCG GP PRACTICE,28012608,"2,165.00"
Department of Health,NHS Barnsley CCG,31/07/2019,C&M-PMS QOF Aspiration,PRC DELEGATED CO-COMMISSIONING,NHS BARNSLEY CCG GP PRACTICE,28012608,"13,813.79"
Department of Health,NHS Barnsley CCG,31/07/2019,C&M-PMS GP Statutory Levy,PRC DELEGATED CO-COMMISSIONING,NHS BARNSLEY CCG GP PRACTICE,28040006,-570.40
Department of Health,NHS Barnsley CCG,31/07/2019,C&M-PMS Out of Hours Opt Outs,PRC DELEGATED CO-COMMISSIONING,NHS BARNSLEY CCG GP PRACTICE,28040006,"-6,398.57"
Department of Health,NHS Barnsley CCG,31/07/2019,C&M-PMS Voluntary Levy,PRC DELEGATED CO-COMMISSIONING,NHS BARNSLEY CCG GP PRACTICE,28040006,-99.82
Department of Health,NHS Barnsley CCG,31/07/2019,ME-PMS GP Pension EEs Adjs - PMS,PRC DELEGATED CO-COMMISSIONING,NHS BARNSLEY CCG GP PRACTICE,28040006,-930.45
Department of Health,NHS Barnsley CCG,31/07/2019,ME-PMS GP Pension EEs-PMS,PRC DELEGATED CO-COMMISSIONING,NHS BARNSLEY CCG GP PRACTICE,28040006,"-12,037.50"
Department of Health,NHS Barnsley CCG,31/07/2019,ME-PMS GP Pension ERs Adjs - PMS,PRC DELEGATED CO-COMMISSIONING,NHS BARNSLEY CCG GP PRACTICE,28040006,"-13,649.05"
Department of Health,NHS Barnsley CCG,31/07/2019,C&M-PMS Cost of Drugs -Dispensing,LOCAL ENHANCED SERVICES,NHS BARNSLEY CCG GP PRACTICE,28276994,"-83,181.50"
Department of Health,NHS Barnsley CCG,31/07/2019,C&M-PMS Prsc Chrgs Cll&Rmttd by GPs,PRC DELEGATED CO-COMMISSIONING,NHS BARNSLEY CCG GP PRACTICE,28276994,"-5,256.00"
Department of Health,NHS Barnsley CCG,31/07/2019,C&M-PMS Cost of Drugs -Dispensing,LOCAL ENHANCED SERVICES,NHS BARNSLEY CCG GP PRACTICE,28276995,"148,486.86"
Department of Health,NHS Barnsley CCG,31/07/2019,C&M-PMS Prof fees Dispensing,PRC DELEGATED CO-COMMISSIONING,NHS BARNSLEY CCG GP PRACTICE,28276995,"29,410.19"
Department of Health,NHS Barnsley CCG,31/07/2019,C&M-PMS Prsc Chrgs Cll&Rmttd by GPs,LOCAL ENHANCED SERVICES,NHS BARNSLEY CCG GP PRACTICE,28276995,"5,256.00"
Department of Health,NHS Barnsley CCG,31/07/2019,C&M-GMS Global Sum,PRC DELEGATED CO-COMMISSIONING,NHS BARNSLEY CCG GP PRACTICE,28254821,"23,839.26"
Department of Health,NHS Barnsley CCG,31/07/2019,C&M-GMS MPIG Correction Factor,PRC DELEGATED CO-COMMISSIONING,NHS BARNSLEY CCG GP PRACTICE,28254821,202.40
Department of Health,NHS Barnsley CCG,31/07/2019,C&M-GMS PCN DES Participation,PRC DELEGATED CO-COMMISSIONING,NHS BARNSLEY CCG GP PRACTICE,28254821,"1,444.59"
Department of Health,NHS Barnsley CCG,31/07/2019,C&M-GMS PCO Other,PRC DELEGATED CO-COMMISSIONING,NHS BARNSLEY CCG GP PRACTICE,28254821,227.50
Department of Health,NHS Barnsley CCG,31/07/2019,C&M-GMS Prem Healthcentre Rent,PRC DELEGATED CO-COMMISSIONING,NHS BARNSLEY CCG GP PRACTICE,28254821,"1,473.37"
Department of Health,NHS Barnsley CCG,31/07/2019,C&M-GMS QOF Aspiration,PRC DELEGATED CO-COMMISSIONING,NHS BARNSLEY CCG GP PRACTICE,28254821,"2,460.63"
Department of Health,NHS Barnsley CCG,31/07/2019,C&M-GMS DES Minor Surgery,PRC DELEGATED CO-COMMISSIONING,NHS BARNSLEY CCG GP PRACTICE,28249993,213.10
Department of Health,NHS Barnsley CCG,31/07/2019,C&M-GMS Global Sum,PRC DELEGATED CO-COMMISSIONING,NHS BARNSLEY CCG GP PRACTICE,28249993,"42,629.74"
Department of Health,NHS Barnsley CCG,31/07/2019,C&M-GMS PCN DES Participation,PRC DELEGATED CO-COMMISSIONING,NHS BARNSLEY CCG GP PRACTICE,28249993,"2,542.50"
Department of Health,NHS Barnsley CCG,31/07/2019,C&M-GMS Prem Actual Rent,PRC DELEGATED CO-COMMISSIONING,NHS BARNSLEY CCG GP PRACTICE,28249993,"9,893.75"
Department of Health,NHS Barnsley CCG,31/07/2019,C&M-GMS Prem Notional Rent,PRC DELEGATED CO-COMMISSIONING,NHS BARNSLEY CCG GP PRACTICE,28249993,"1,681.25"
Department of Health,NHS Barnsley CCG,31/07/2019,C&M-GMS Prem Rates,PRC DELEGATED CO-COMMISSIONING,NHS BARNSLEY CCG GP PRACTICE,28249993,"1,502.00"
Department of Health,NHS Barnsley CCG,31/07/2019,C&M-GMS QOF Aspiration,PRC DELEGATED CO-COMMISSIONING,NHS BARNSLEY CCG GP PRACTICE,28249993,"4,009.16"
Department of Health,NHS Barnsley CCG,31/07/2019,C&M-PMS Contract Value,PRC DELEGATED CO-COMMISSIONING,NHS BARNSLEY CCG GP PRACTICE,28012607,"39,002.92"
Department of Health,NHS Barnsley CCG,31/07/2019,C&M-PMS Out of Hours Opt Outs,PRC DELEGATED CO-COMMISSIONING,NHS BARNSLEY CCG GP PRACTICE,28012607,2.90
Department of Health,NHS Barnsley CCG,31/07/2019,C&M-PMS PCN DES Participation,PRC DELEGATED CO-COMMISSIONING,NHS BARNSLEY CCG GP PRACTICE,28012607,"2,227.41"
Department of Health,NHS Barnsley CCG,31/07/2019,C&M-PMS Prem Healthcentre Rent,PRC DELEGATED CO-COMMISSIONING,NHS BARNSLEY CCG GP PRACTICE,28012607,"3,596.62"
Department of Health,NHS Barnsley CCG,31/07/2019,C&M-PMS Prem Notional Rent,PRC DELEGATED CO-COMMISSIONING,NHS BARNSLEY CCG GP PRACTICE,28012607,"8,808.34"
Department of Health,NHS Barnsley CCG,31/07/2019,C&M-PMS Prem Rates,PRC DELEGATED CO-COMMISSIONING,NHS BARNSLEY CCG GP PRACTICE,28012607,"1,550.59"
Department of Health,NHS Barnsley CCG,31/07/2019,C&M-PMS Prem Water Rates,PRC DELEGATED CO-COMMISSIONING,NHS BARNSLEY CCG GP PRACTICE,28012607,155.23
Department of Health,NHS Barnsley CCG,31/07/2019,C&M-PMS QOF Aspiration,PRC DELEGATED CO-COMMISSIONING,NHS BARNSLEY CCG GP PRACTICE,28012607,"2,732.54"
Department of Health,NHS Barnsley CCG,31/07/2019,C&M-GMS DES Minor Surgery,PRC DELEGATED CO-COMMISSIONING,NHS BARNSLEY CCG GP PRACTICE,28249997,"6,606.10"
Department of Health,NHS Barnsley CCG,31/07/2019,C&M-GMS Global Sum,PRC DELEGATED CO-COMMISSIONING,NHS BARNSLEY CCG GP PRACTICE,28249997,"109,385.00"
Department of Health,NHS Barnsley CCG,31/07/2019,C&M-GMS PCN DES Participation,PRC DELEGATED CO-COMMISSIONING,NHS BARNSLEY CCG GP PRACTICE,28249997,"6,763.50"
Department of Health,NHS Barnsley CCG,31/07/2019,C&M-GMS Prem Notional Rent,PRC DELEGATED CO-COMMISSIONING,NHS BARNSLEY CCG GP PRACTICE,28249997,"7,297.17"
Department of Health,NHS Barnsley CCG,31/07/2019,C&M-GMS QOF Aspiration,PRC DELEGATED CO-COMMISSIONING,NHS BARNSLEY CCG GP PRACTICE,28249997,"11,179.35"
Department of Health,NHS Barnsley CCG,31/07/2019,C&M-GMS DES Minor Surgery,PRC DELEGATED CO-COMMISSIONING,NHS BARNSLEY CCG GP PRACTICE,28249995,"3,622.70"
Department of Health,NHS Barnsley CCG,31/07/2019,C&M-GMS Global Sum,PRC DELEGATED CO-COMMISSIONING,NHS BARNSLEY CCG GP PRACTICE,28249995,"98,190.64"
Department of Health,NHS Barnsley CCG,31/07/2019,C&M-GMS PCN DES Participation,PRC DELEGATED CO-COMMISSIONING,NHS BARNSLEY CCG GP PRACTICE,28249995,"6,040.89"
Department of Health,NHS Barnsley CCG,31/07/2019,C&M-GMS Prem Notional Rent,PRC DELEGATED CO-COMMISSIONING,NHS BARNSLEY CCG GP PRACTICE,28249995,"13,593.75"
Department of Health,NHS Barnsley CCG,31/07/2019,C&M-GMS Prem Rates,PRC DELEGATED CO-COMMISSIONING,NHS BARNSLEY CCG GP PRACTICE,28249995,"3,093.54"
Department of Health,NHS Barnsley CCG,31/07/2019,C&M-GMS Prem Water Rates,PRC DELEGATED CO-COMMISSIONING,NHS BARNSLEY CCG GP PRACTICE,28249995,970.32
Department of Health,NHS Barnsley CCG,31/07/2019,C&M-GMS QOF Aspiration,PRC DELEGATED CO-COMMISSIONING,NHS BARNSLEY CCG GP PRACTICE,28249995,"9,651.42"
Department of Health,NHS Barnsley CCG,31/07/2019,C&M-APMS LES GP Comm Incentive Sch,COMMISSIONING SCHEMES,NHS BARNSLEY CCG GP PRACTICE,28141019,"17,798.83"
Department of Health,NHS Barnsley CCG,31/07/2019,C&M-PMS LES Referral Management,COMMISSIONING SCHEMES,NHS BARNSLEY CCG GP PRACTICE,28141019,"17,475.22"
Department of Health,NHS Barnsley CCG,31/07/2019,Clinical&Medical-Clinical Other,COMMISSIONING SCHEMES,NHS BARNSLEY CCG GP PRACTICE,28141019,"6,847.70"
Department of Health,NHS Barnsley CCG,31/07/2019,C&M-GMS Global Sum,PRC DELEGATED CO-COMMISSIONING,NHS BARNSLEY CCG GP PRACTICE,28249999,"82,583.48"
Department of Health,NHS Barnsley CCG,31/07/2019,C&M-GMS PCN DES Participation,PRC DELEGATED CO-COMMISSIONING,NHS BARNSLEY CCG GP PRACTICE,28249999,"5,052.78"
Department of Health,NHS Barnsley CCG,31/07/2019,C&M-GMS PCO Other,PRC DELEGATED CO-COMMISSIONING,NHS BARNSLEY CCG GP PRACTICE,28249999,644.20
Department of Health,NHS Barnsley CCG,31/07/2019,C&M-GMS Prem Actual Rent,PRC DELEGATED CO-COMMISSIONING,NHS BARNSLEY CCG GP PRACTICE,28249999,"41,048.75"
Department of Health,NHS Barnsley CCG,31/07/2019,C&M-GMS Prem Rates,PRC DELEGATED CO-COMMISSIONING,NHS BARNSLEY CCG GP PRACTICE,28249999,"2,448.18"
Department of Health,NHS Barnsley CCG,31/07/2019,C&M-GMS Prem Water Rates,PRC DELEGATED CO-COMMISSIONING,NHS BARNSLEY CCG GP PRACTICE,28249999,"2,728.91"
Department of Health,NHS Barnsley CCG,31/07/2019,C&M-GMS QOF Aspiration,PRC DELEGATED CO-COMMISSIONING,NHS BARNSLEY CCG GP PRACTICE,28249999,"10,284.96"
Department of Health,NHS Barnsley CCG,31/07/2019,C&M-PMS Contract Value,PRC DELEGATED CO-COMMISSIONING,NHS BARNSLEY CCG GP PRACTICE,28012609,"-1,118.30"
Department of Health,NHS Barnsley CCG,31/07/2019,C&M-PMS GP Statutory Levy,PRC DELEGATED CO-COMMISSIONING,NHS BARNSLEY CCG GP PRACTICE,28012609,-574.67
Department of Health,NHS Barnsley CCG,31/07/2019,C&M-PMS Out of Hours Opt Outs,PRC DELEGATED CO-COMMISSIONING,NHS BARNSLEY CCG GP PRACTICE,28012609,"-7,070.33"
Department of Health,NHS Barnsley CCG,31/07/2019,C&M-PMS Voluntary Levy,PRC DELEGATED CO-COMMISSIONING,NHS BARNSLEY CCG GP PRACTICE,28012609,-100.57
Department of Health,NHS Barnsley CCG,31/07/2019,ME - PMS TPS Added Years Adj EEs,PRC DELEGATED CO-COMMISSIONING,NHS BARNSLEY CCG GP PRACTICE,28012609,-346.67
Department of Health,NHS Barnsley CCG,31/07/2019,ME-PMS GP Pension EEs-PMS,PRC DELEGATED CO-COMMISSIONING,NHS BARNSLEY CCG GP PRACTICE,28012609,"-8,565.23"
Department of Health,NHS Barnsley CCG,31/07/2019,ME-PMS GP Pension ERs Adjs - PMS,PRC DELEGATED CO-COMMISSIONING,NHS BARNSLEY CCG GP PRACTICE,28012609,"-9,045.61"
Department of Health,NHS Barnsley CCG,31/07/2019,C&M-PMS Contract Value,PRC DELEGATED CO-COMMISSIONING,NHS BARNSLEY CCG GP PRACTICE,28012610,"150,336.41"
Department of Health,NHS Barnsley CCG,31/07/2019,C&M-PMS Out of Hours Opt Outs,PRC DELEGATED CO-COMMISSIONING,NHS BARNSLEY CCG GP PRACTICE,28012610,54.32
Department of Health,NHS Barnsley CCG,31/07/2019,C&M-PMS PCN DES Participation,PRC DELEGATED CO-COMMISSIONING,NHS BARNSLEY CCG GP PRACTICE,28012610,"8,626.47"
Department of Health,NHS Barnsley CCG,31/07/2019,C&M-PMS Prem Notional Rent,PRC DELEGATED CO-COMMISSIONING,NHS BARNSLEY CCG GP PRACTICE,28012610,"11,741.66"
Department of Health,NHS Barnsley CCG,31/07/2019,C&M-PMS QOF Aspiration,PRC DELEGATED CO-COMMISSIONING,NHS BARNSLEY CCG GP PRACTICE,28012610,"15,137.25"
Department of Health,NHS Barnsley CCG,31/07/2019,ME - PMS GP Prior Year ERs,PRC DELEGATED CO-COMMISSIONING,NHS BARNSLEY CCG GP PRACTICE,28012610,"1,691.27"
Department of Health,NHS Barnsley CCG,31/07/2019,ME-PMS GP Prior Year EEs,PRC DELEGATED CO-COMMISSIONING,NHS BARNSLEY CCG GP PRACTICE,28012610,"1,470.12"
Department of Health,NHS Barnsley CCG,31/07/2019,C&M-APMS LES GP Comm Incentive Sch,COMMISSIONING SCHEMES,NHS BARNSLEY CCG GP PRACTICE,28141031,"29,962.79"
Department of Health,NHS Barnsley CCG,31/07/2019,C&M-PMS LES Referral Management,COMMISSIONING SCHEMES,NHS BARNSLEY CCG GP PRACTICE,28141031,"29,418.01"
Department of Health,NHS Barnsley CCG,31/07/2019,Clinical&Medical-Clinical Other,COMMISSIONING SCHEMES,NHS BARNSLEY CCG GP PRACTICE,28141031,"11,258.74"
Department of Health,NHS Barnsley CCG,31/07/2019,C&M-PMS Contract Value,PRC DELEGATED CO-COMMISSIONING,NHS BARNSLEY CCG GP PRACTICE,28012612,"109,440.44"
Department of Health,NHS Barnsley CCG,31/07/2019,C&M-PMS PCN DES Participation,PRC DELEGATED CO-COMMISSIONING,NHS BARNSLEY CCG GP PRACTICE,28012612,"6,041.22"
Department of Health,NHS Barnsley CCG,31/07/2019,C&M-PMS PCO Other,PRC DELEGATED CO-COMMISSIONING,NHS BARNSLEY CCG GP PRACTICE,28012612,726.40
Department of Health,NHS Barnsley CCG,31/07/2019,C&M-PMS Prem Actual Rent,PRC DELEGATED CO-COMMISSIONING,NHS BARNSLEY CCG GP PRACTICE,28012612,"13,333.33"
Department of Health,NHS Barnsley CCG,31/07/2019,C&M-PMS Prem Rates,PRC DELEGATED CO-COMMISSIONING,NHS BARNSLEY CCG GP PRACTICE,28012612,"3,276.00"
Department of Health,NHS Barnsley CCG,31/07/2019,C&M-PMS QOF Aspiration,PRC DELEGATED CO-COMMISSIONING,NHS BARNSLEY CCG GP PRACTICE,28012612,"10,812.71"
Department of Health,NHS Barnsley CCG,31/07/2019,C&M-PMS Contract Value,PRC DELEGATED CO-COMMISSIONING,NHS BARNSLEY CCG GP PRACTICE,28012614,"97,058.56"
Department of Health,NHS Barnsley CCG,31/07/2019,C&M-PMS PCN DES Participation,PRC DELEGATED CO-COMMISSIONING,NHS BARNSLEY CCG GP PRACTICE,28012614,"5,362.26"
Department of Health,NHS Barnsley CCG,31/07/2019,C&M-PMS PCO Other,PRC DELEGATED CO-COMMISSIONING,NHS BARNSLEY CCG GP PRACTICE,28012614,"2,839.20"
Department of Health,NHS Barnsley CCG,31/07/2019,C&M-PMS Prem Actual Rent,PRC DELEGATED CO-COMMISSIONING,NHS BARNSLEY CCG GP PRACTICE,28012614,"8,566.67"
Department of Health,NHS Barnsley CCG,31/07/2019,C&M-PMS Prem Rates,PRC DELEGATED CO-COMMISSIONING,NHS BARNSLEY CCG GP PRACTICE,28012614,"8,310.36"
Department of Health,NHS Barnsley CCG,31/07/2019,C&M-PMS Prem Water Rates,PRC DELEGATED CO-COMMISSIONING,NHS BARNSLEY CCG GP PRACTICE,28012614,180.14
Department of Health,NHS Barnsley CCG,31/07/2019,C&M-PMS QOF Aspiration,PRC DELEGATED CO-COMMISSIONING,NHS BARNSLEY CCG GP PRACTICE,28012614,"7,216.95"
Department of Health,NHS Barnsley CCG,31/07/2019,C&M-APMS LES GP Comm Incentive Sch,COMMISSIONING SCHEMES,NHS BARNSLEY CCG GP PRACTICE,28140991,"12,733.67"
Department of Health,NHS Barnsley CCG,31/07/2019,C&M-PMS LES Referral Management,COMMISSIONING SCHEMES,NHS BARNSLEY CCG GP PRACTICE,28140991,"12,502.14"
Department of Health,NHS Barnsley CCG,31/07/2019,Clinical&Medical-Clinical Other,COMMISSIONING SCHEMES,NHS BARNSLEY CCG GP PRACTICE,28140991,"10,602.13"
Department of Health,NHS Barnsley CCG,31/07/2019,C&M-GMS DES Minor Surgery,PRC DELEGATED CO-COMMISSIONING,NHS BARNSLEY CCG GP PRACTICE,28250001,980.26
Department of Health,NHS Barnsley CCG,31/07/2019,C&M-GMS Global Sum,PRC DELEGATED CO-COMMISSIONING,NHS BARNSLEY CCG GP PRACTICE,28250001,"57,682.80"
Department of Health,NHS Barnsley CCG,31/07/2019,C&M-GMS PCN DES Participation,PRC DELEGATED CO-COMMISSIONING,NHS BARNSLEY CCG GP PRACTICE,28250001,"3,563.70"
Department of Health,NHS Barnsley CCG,31/07/2019,C&M-GMS PCO Other,PRC DELEGATED CO-COMMISSIONING,NHS BARNSLEY CCG GP PRACTICE,28250001,"4,364.00"
Department of Health,NHS Barnsley CCG,31/07/2019,C&M-GMS Prem Healthcentre Rent,PRC DELEGATED CO-COMMISSIONING,NHS BARNSLEY CCG GP PRACTICE,28250001,"24,538.12"
Department of Health,NHS Barnsley CCG,31/07/2019,C&M-GMS QOF Aspiration,PRC DELEGATED CO-COMMISSIONING,NHS BARNSLEY CCG GP PRACTICE,28250001,"6,065.73"
Department of Health,NHS Barnsley CCG,31/07/2019,C&M-PMS GP Statutory Levy,PRC DELEGATED CO-COMMISSIONING,NHS BARNSLEY CCG GP PRACTICE,28012615,-433.83
Department of Health,NHS Barnsley CCG,31/07/2019,C&M-PMS Out of Hours Opt Outs,PRC DELEGATED CO-COMMISSIONING,NHS BARNSLEY CCG GP PRACTICE,28012615,"-5,037.54"
Department of Health,NHS Barnsley CCG,31/07/2019,C&M-PMS Voluntary Levy,PRC DELEGATED CO-COMMISSIONING,NHS BARNSLEY CCG GP PRACTICE,28012615,-75.92
Department of Health,NHS Barnsley CCG,31/07/2019,ME - PMS GP Prior Year ERs,PRC DELEGATED CO-COMMISSIONING,NHS BARNSLEY CCG GP PRACTICE,28012615,"-7,390.71"
Department of Health,NHS Barnsley CCG,31/07/2019,ME-PMS GP Pension EEs-PMS,PRC DELEGATED CO-COMMISSIONING,NHS BARNSLEY CCG GP PRACTICE,28012615,"-4,378.10"
Department of Health,NHS Barnsley CCG,31/07/2019,ME-PMS GP Pension ERs Adjs - PMS,PRC DELEGATED CO-COMMISSIONING,NHS BARNSLEY CCG GP PRACTICE,28012615,"-5,244.89"
Department of Health,NHS Barnsley CCG,31/07/2019,ME-PMS GP Prior Year EEs,PRC DELEGATED CO-COMMISSIONING,NHS BARNSLEY CCG GP PRACTICE,28012615,"-8,371.75"
Department of Health,NHS Barnsley CCG,31/07/2019,C&M-PMS Contract Value,PRC DELEGATED CO-COMMISSIONING,NHS BARNSLEY CCG GP PRACTICE,28012616,"110,582.84"
Department of Health,NHS Barnsley CCG,31/07/2019,C&M-PMS PCN DES Participation,PRC DELEGATED CO-COMMISSIONING,NHS BARNSLEY CCG GP PRACTICE,28012616,"6,124.80"
Department of Health,NHS Barnsley CCG,31/07/2019,C&M-PMS Prem Actual Rent,PRC DELEGATED CO-COMMISSIONING,NHS BARNSLEY CCG GP PRACTICE,28012616,"55,281.25"
Department of Health,NHS Barnsley CCG,31/07/2019,C&M-PMS Prem Rates,PRC DELEGATED CO-COMMISSIONING,NHS BARNSLEY CCG GP PRACTICE,28012616,"3,513.00"
Department of Health,NHS Barnsley CCG,31/07/2019,C&M-PMS Prem Water Rates,PRC DELEGATED CO-COMMISSIONING,NHS BARNSLEY CCG GP PRACTICE,28012616,"2,347.76"
Department of Health,NHS Barnsley CCG,31/07/2019,C&M-PMS QOF Aspiration,PRC DELEGATED CO-COMMISSIONING,NHS BARNSLEY CCG GP PRACTICE,28012616,"11,217.47"
Department of Health,NHS Barnsley CCG,31/07/2019,C&M-GMS DES Minor Surgery,PRC DELEGATED CO-COMMISSIONING,NHS BARNSLEY CCG GP PRACTICE,28250005,"4,773.44"
Department of Health,NHS Barnsley CCG,31/07/2019,C&M-GMS Global Sum,PRC DELEGATED CO-COMMISSIONING,NHS BARNSLEY CCG GP PRACTICE,28250005,"49,959.04"
Department of Health,NHS Barnsley CCG,31/07/2019,C&M-GMS PCN DES Participation,PRC DELEGATED CO-COMMISSIONING,NHS BARNSLEY CCG GP PRACTICE,28250005,"3,055.68"
Department of Health,NHS Barnsley CCG,31/07/2019,C&M-GMS Prem Notional Rent,PRC DELEGATED CO-COMMISSIONING,NHS BARNSLEY CCG GP PRACTICE,28250005,"2,750.00"
Department of Health,NHS Barnsley CCG,31/07/2019,C&M-GMS Prem Rates,PRC DELEGATED CO-COMMISSIONING,NHS BARNSLEY CCG GP PRACTICE,28250005,565.00
Department of Health,NHS Barnsley CCG,31/07/2019,C&M-GMS QOF Aspiration,PRC DELEGATED CO-COMMISSIONING,NHS BARNSLEY CCG GP PRACTICE,28250005,"3,844.61"
Department of Health,NHS Barnsley CCG,31/07/2019,Clinical&Medical-Commercial Sector,LEARNING DIFFICULTIES,NHS BARNSLEY CCG GP PRACTICE,27990439,"29,242.50"
Department of Health,NHS Barnsley CCG,31/07/2019,C&M-PMS Contract Value,PRC DELEGATED CO-COMMISSIONING,NHS BARNSLEY CCG GP PRACTICE,28012630,"41,819.08"
Department of Health,NHS Barnsley CCG,31/07/2019,C&M-PMS Out of Hours Opt Outs,PRC DELEGATED CO-COMMISSIONING,NHS BARNSLEY CCG GP PRACTICE,28012630,14.40
Department of Health,NHS Barnsley CCG,31/07/2019,C&M-PMS PCN DES Participation,PRC DELEGATED CO-COMMISSIONING,NHS BARNSLEY CCG GP PRACTICE,28012630,"2,398.08"
Department of Health,NHS Barnsley CCG,31/07/2019,C&M-PMS Prem Notional Rent,PRC DELEGATED CO-COMMISSIONING,NHS BARNSLEY CCG GP PRACTICE,28012630,"24,437.50"
Department of Health,NHS Barnsley CCG,31/07/2019,C&M-PMS Prem Rates,PRC DELEGATED CO-COMMISSIONING,NHS BARNSLEY CCG GP PRACTICE,28012630,"3,500.00"
Department of Health,NHS Barnsley CCG,31/07/2019,C&M-PMS QOF Aspiration,PRC DELEGATED CO-COMMISSIONING,NHS BARNSLEY CCG GP PRACTICE,28012630,"4,070.72"
Department of Health,NHS Barnsley CCG,31/07/2019,Soc Care-Bed-Based Int Care Servs,INTERMEDIATE CARE,HIGHSTONE MEWS CARE HOME,27966852,"38,910.67"
Department of Health,NHS Barnsley CCG,31/07/2019,Apprenticeship Levy Payable,BALANCE SHEET,HMRC,28062988,"1,028.00"
Department of Health,NHS Barnsley CCG,31/07/2019,Income tax <1Yr,BALANCE SHEET,HMRC,28062988,"65,756.40"
Department of Health,NHS Barnsley CCG,31/07/2019,Income tax <1Yr-Student Loans,BALANCE SHEET,HMRC,28062988,"1,394.00"
Department of Health,NHS Barnsley CCG,31/07/2019,National Insurance < 1 yr-NI- ERS,BALANCE SHEET,HMRC,28062988,"48,438.74"
Department of Health,NHS Barnsley CCG,31/07/2019,National Insurance < 1 yr-NI-EES,BALANCE SHEET,HMRC,28062988,"35,932.74"
Department of Health,NHS Barnsley CCG,31/07/2019,Statutory Mat Pay < 1 yr,BALANCE SHEET,HMRC,28062988,"-1,094.32"
Department of Health,NHS Barnsley CCG,31/07/2019,Cont Care-Learning Disab(<65),CHC ADULT JOINT FUNDED,HOLLY BANK TRUST,28255216,"25,410.86"
Department of Health,NHS Barnsley CCG,31/07/2019,C&M-GMS DES Minor Surgery,PRC DELEGATED CO-COMMISSIONING,NHS BARNSLEY CCG GP PRACTICE,28311990,"3,452.22"
Department of Health,NHS Barnsley CCG,31/07/2019,C&M-GMS GP Statutory Levy,PRC DELEGATED CO-COMMISSIONING,NHS BARNSLEY CCG GP PRACTICE,28311990,-366.83
Department of Health,NHS Barnsley CCG,31/07/2019,C&M-GMS Global Sum,PRC DELEGATED CO-COMMISSIONING,NHS BARNSLEY CCG GP PRACTICE,28311990,"96,526.76"
Department of Health,NHS Barnsley CCG,31/07/2019,C&M-GMS PCN DES Participation,PRC DELEGATED CO-COMMISSIONING,NHS BARNSLEY CCG GP PRACTICE,28311990,"5,903.34"
Department of Health,NHS Barnsley CCG,31/07/2019,C&M-GMS Prem Healthcentre Rent,PRC DELEGATED CO-COMMISSIONING,NHS BARNSLEY CCG GP PRACTICE,28311990,"39,576.01"
Department of Health,NHS Barnsley CCG,31/07/2019,C&M-GMS QOF Aspiration,PRC DELEGATED CO-COMMISSIONING,NHS BARNSLEY CCG GP PRACTICE,28311990,"9,168.58"
Department of Health,NHS Barnsley CCG,31/07/2019,C&M-GMS Voluntary Levy,PRC DELEGATED CO-COMMISSIONING,NHS BARNSLEY CCG GP PRACTICE,28311990,-64.20
Department of Health,NHS Barnsley CCG,31/07/2019,ME-GMS GP Pension EEs,PRC DELEGATED CO-COMMISSIONING,NHS BARNSLEY CCG GP PRACTICE,28311990,"-2,776.56"
Department of Health,NHS Barnsley CCG,31/07/2019,ME-GMS GP Pension ERs Adjustments,PRC DELEGATED CO-COMMISSIONING,NHS BARNSLEY CCG GP PRACTICE,28311990,"-3,103.08"
Department of Health,NHS Barnsley CCG,31/07/2019,C&M-GMS DES Minor Surgery,PRC DELEGATED CO-COMMISSIONING,NHS BARNSLEY CCG GP PRACTICE,28250007,"2,770.30"
Department of Health,NHS Barnsley CCG,31/07/2019,C&M-GMS Global Sum,PRC DELEGATED CO-COMMISSIONING,NHS BARNSLEY CCG GP PRACTICE,28250007,"90,792.99"
Department of Health,NHS Barnsley CCG,31/07/2019,C&M-GMS PCN DES Participation,PRC DELEGATED CO-COMMISSIONING,NHS BARNSLEY CCG GP PRACTICE,28250007,"5,537.97"
Department of Health,NHS Barnsley CCG,31/07/2019,C&M-GMS Prem Healthcentre Rent,PRC DELEGATED CO-COMMISSIONING,NHS BARNSLEY CCG GP PRACTICE,28250007,"21,846.34"
Department of Health,NHS Barnsley CCG,31/07/2019,C&M-GMS Prem Notional Rent,PRC DELEGATED CO-COMMISSIONING,NHS BARNSLEY CCG GP PRACTICE,28250007,"1,466.67"
Department of Health,NHS Barnsley CCG,31/07/2019,C&M-GMS QOF Aspiration,PRC DELEGATED CO-COMMISSIONING,NHS BARNSLEY CCG GP PRACTICE,28250007,"10,019.14"
Department of Health,NHS Barnsley CCG,31/07/2019,C&M-APMS LES GP Comm Incentive Sch,COMMISSIONING SCHEMES,NHS BARNSLEY CCG GP PRACTICE,28328597,"6,360.35"
Department of Health,NHS Barnsley CCG,31/07/2019,C&M-GMS PCO Other,COMMISSIONING SCHEMES,NHS BARNSLEY CCG GP PRACTICE,28328597,"15,385.17"
Department of Health,NHS Barnsley CCG,31/07/2019,C&M-PMS LES Referral Management,COMMISSIONING SCHEMES,NHS BARNSLEY CCG GP PRACTICE,28328597,"5,157.04"
Department of Health,NHS Barnsley CCG,31/07/2019,Clinical&Medical-Commercial Sector,ACUTE COMMISSIONING,INHEALTH PAIN MANAGEMENT SOLUTIONS LTD,28260596,"29,633.74"
Department of Health,NHS Barnsley CCG,31/07/2019,C&M-PMS Contract Value,PRC DELEGATED CO-COMMISSIONING,NHS BARNSLEY CCG GP PRACTICE,28012618,"50,661.33"
Department of Health,NHS Barnsley CCG,31/07/2019,C&M-PMS Out of Hours Opt Outs,PRC DELEGATED CO-COMMISSIONING,NHS BARNSLEY CCG GP PRACTICE,28012618,5.40
Department of Health,NHS Barnsley CCG,31/07/2019,C&M-PMS PCN DES Participation,PRC DELEGATED CO-COMMISSIONING,NHS BARNSLEY CCG GP PRACTICE,28012618,"2,910.15"
Department of Health,NHS Barnsley CCG,31/07/2019,C&M-PMS Prem Healthcentre Rent,PRC DELEGATED CO-COMMISSIONING,NHS BARNSLEY CCG GP PRACTICE,28012618,"5,961.99"
Department of Health,NHS Barnsley CCG,31/07/2019,C&M-PMS Prem Notional Rent,PRC DELEGATED CO-COMMISSIONING,NHS BARNSLEY CCG GP PRACTICE,28012618,"3,666.67"
Department of Health,NHS Barnsley CCG,31/07/2019,C&M-PMS Prem Rates,PRC DELEGATED CO-COMMISSIONING,NHS BARNSLEY CCG GP PRACTICE,28012618,839.00
Department of Health,NHS Barnsley CCG,31/07/2019,C&M-PMS QOF Aspiration,PRC DELEGATED CO-COMMISSIONING,NHS BARNSLEY CCG GP PRACTICE,28012618,"5,136.89"
Department of Health,NHS Barnsley CCG,31/07/2019,External Data Contracts,BUSINESS INFORMATICS,KIER BUSINESS SERVICES LTD,28047517,"13,467.00"
Department of Health,NHS Barnsley CCG,31/07/2019,External Data Contracts,COMMISSIONING SCHEMES,KIER BUSINESS SERVICES LTD,28047517,"14,391.00"
Department of Health,NHS Barnsley CCG,31/07/2019,Telecoms-Data lines,PRIMARY CARE IT,KIER BUSINESS SERVICES LTD,28047517,"47,150.00"
Department of Health,NHS Barnsley CCG,31/07/2019,C&M-PMS Contract Value,PRC DELEGATED CO-COMMISSIONING,NHS BARNSLEY CCG GP PRACTICE,28018638,"29,904.05"
Department of Health,NHS Barnsley CCG,31/07/2019,C&M-PMS PCN DES Participation,PRC DELEGATED CO-COMMISSIONING,NHS BARNSLEY CCG GP PRACTICE,28018638,"1,712.67"
Department of Health,NHS Barnsley CCG,31/07/2019,C&M-PMS PCO Other,PRC DELEGATED CO-COMMISSIONING,NHS BARNSLEY CCG GP PRACTICE,28018638,"2,818.00"
Department of Health,NHS Barnsley CCG,31/07/2019,C&M-PMS Prem Notional Rent,PRC DELEGATED CO-COMMISSIONING,NHS BARNSLEY CCG GP PRACTICE,28018638,"4,333.33"
Department of Health,NHS Barnsley CCG,31/07/2019,C&M-PMS Prem Rates,PRC DELEGATED CO-COMMISSIONING,NHS BARNSLEY CCG GP PRACTICE,28018638,"1,300.00"
Department of Health,NHS Barnsley CCG,31/07/2019,C&M-PMS QOF Aspiration,PRC DELEGATED CO-COMMISSIONING,NHS BARNSLEY CCG GP PRACTICE,28018638,"2,166.21"
Department of Health,NHS Barnsley CCG,31/07/2019,C&M-PMS Cost of Drugs -Dispensing,LOCAL ENHANCED SERVICES,NHS BARNSLEY CCG GP PRACTICE,28277409,"26,747.85"
Department of Health,NHS Barnsley CCG,31/07/2019,C&M-PMS Prof fees Dispensing,PRC DELEGATED CO-COMMISSIONING,NHS BARNSLEY CCG GP PRACTICE,28277409,"5,431.98"
Department of Health,NHS Barnsley CCG,31/07/2019,C&M-PMS Prsc Chrgs Cll&Rmttd by GPs,LOCAL ENHANCED SERVICES,NHS BARNSLEY CCG GP PRACTICE,28277409,"1,440.00"
Department of Health,NHS Barnsley CCG,31/07/2019,C&M-APMS Contract Value,PRC DELEGATED CO-COMMISSIONING,NHS BARNSLEY CCG GP PRACTICE,28012622,"19,595.43"
Department of Health,NHS Barnsley CCG,31/07/2019,C&M-APMS PCN DES Participation,PRC DELEGATED CO-COMMISSIONING,NHS BARNSLEY CCG GP PRACTICE,28012622,"1,136.25"
Department of Health,NHS Barnsley CCG,31/07/2019,C&M-APMS Prem Healthcentre Rent,PRC DELEGATED CO-COMMISSIONING,NHS BARNSLEY CCG GP PRACTICE,28012622,"4,986.28"
Department of Health,NHS Barnsley CCG,31/07/2019,C&M-PMS QOF Aspiration,PRC DELEGATED CO-COMMISSIONING,NHS BARNSLEY CCG GP PRACTICE,28012622,"1,724.79"
Department of Health,NHS Barnsley CCG,31/07/2019,Hcare Srv Rec NHS Trust-CQUIN,ACUTE COMMISSIONING,LEEDS TEACHING HOSPITALS NHS TRUST,27935535,"1,010.00"
Department of Health,NHS Barnsley CCG,31/07/2019,Hcare Srv Rec NHS Trust-Contract Baseline,ACUTE COMMISSIONING,LEEDS TEACHING HOSPITALS NHS TRUST,27935535,"97,982.00"
Department of Health,NHS Barnsley CCG,31/07/2019,Hcare Srv Rec NHS Trust-CQUIN,ACUTE COMMISSIONING,MID YORKSHIRE HOSPITALS NHS TRUST,28047321,"1,354.00"
Department of Health,NHS Barnsley CCG,31/07/2019,Hcare Srv Rec NHS Trust-Contract Baseline,ACUTE COMMISSIONING,MID YORKSHIRE HOSPITALS NHS TRUST,28047321,"246,868.00"
Department of Health,NHS Barnsley CCG,31/07/2019,Clinical&Medical-Commercial Sector,ACUTE COMMISSIONING,ONEHEALTH GROUP,27966887,"43,970.00"
Department of Health,NHS Barnsley CCG,31/07/2019,C&M-APMS LES GP Comm Incentive Sch,COMMISSIONING SCHEMES,NHS BARNSLEY CCG GP PRACTICE,28260818,"27,154.58"
Department of Health,NHS Barnsley CCG,31/07/2019,C&M-PMS LES Referral Management,COMMISSIONING SCHEMES,NHS BARNSLEY CCG GP PRACTICE,28260818,"26,660.87"
Department of Health,NHS Barnsley CCG,31/07/2019,Clinical&Medical-Clinical Other,COMMISSIONING SCHEMES,NHS BARNSLEY CCG GP PRACTICE,28260818,"14,130.26"
Department of Health,NHS Barnsley CCG,31/07/2019,Other Transport Costs,PATIENT TRANSPORT,PREMIER CARE DIRECT LTD,28185139,"35,025.67"
Department of Health,NHS Barnsley CCG,31/07/2019,Other Transport Costs,PATIENT TRANSPORT,PREMIER CARE DIRECT LTD,28240069,"35,025.67"
Department of Health,NHS Barnsley CCG,31/07/2019,Hcare Srv Rec Fdtn Trust-CQUIN,MENTAL HEALTH CONTRACTS,ROTHERHAM DONCASTER AND SOUTH HUMBER NHS FOUNDATION TRUST,27935634,235.50
Department of Health,NHS Barnsley CCG,31/07/2019,Hcare Srv Rec Fdtn Trust-Contract Baseline,MENTAL HEALTH CONTRACTS,ROTHERHAM DONCASTER AND SOUTH HUMBER NHS FOUNDATION TRUST,27935634,"37,679.00"
Department of Health,NHS Barnsley CCG,31/07/2019,Hcare Srv Rec Fdtn Trust-CQUIN,MENTAL HEALTH CONTRACTS,ROTHERHAM DONCASTER AND SOUTH HUMBER NHS FOUNDATION TRUST,28087307,235.50
Department of Health,NHS Barnsley CCG,31/07/2019,Hcare Srv Rec Fdtn Trust-Contract Baseline,MENTAL HEALTH CONTRACTS,ROTHERHAM DONCASTER AND SOUTH HUMBER NHS FOUNDATION TRUST,28087307,"37,679.00"
Department of Health,NHS Barnsley CCG,31/07/2019,Hcare Srv Rec Fdtn Trust-CQUIN,ACUTE COMMISSIONING,ROTHERHAM NHS FOUNDATION TRUST,28047299,"2,339.00"
Department of Health,NHS Barnsley CCG,31/07/2019,Hcare Srv Rec Fdtn Trust-Contract Baseline,ACUTE COMMISSIONING,ROTHERHAM NHS FOUNDATION TRUST,28047299,"410,225.00"
Department of Health,NHS Barnsley CCG,31/07/2019,Hcare Srv Rec Fdtn Trust-CQUIN,COMMUNITY SERVICES,ROTHERHAM NHS FOUNDATION TRUST,28047308,530.00
Department of Health,NHS Barnsley CCG,31/07/2019,Hcare Srv Rec Fdtn Trust-Contract Baseline,COMMUNITY SERVICES,ROTHERHAM NHS FOUNDATION TRUST,28047308,"42,420.00"
Department of Health,NHS Barnsley CCG,31/07/2019,C&M-APMS LES GP Comm Incentive Sch,COMMISSIONING SCHEMES,NHS BARNSLEY CCG GP PRACTICE,28000009,"13,593.73"
Department of Health,NHS Barnsley CCG,31/07/2019,C&M-PMS LES Referral Management,COMMISSIONING SCHEMES,NHS BARNSLEY CCG GP PRACTICE,28000009,"13,346.58"
Department of Health,NHS Barnsley CCG,31/07/2019,Clinical&Medical-Clinical Other,COMMISSIONING SCHEMES,NHS BARNSLEY CCG GP PRACTICE,28000009,"10,294.99"
Department of Health,NHS Barnsley CCG,31/07/2019,C&M-GMS LES Medicine Management,COMMISSIONING SCHEMES,NHS BARNSLEY CCG GP PRACTICE,28047492,"42,898.00"
Department of Health,NHS Barnsley CCG,31/07/2019,C&M-GMS GP Statutory Levy,PRC DELEGATED CO-COMMISSIONING,NHS BARNSLEY CCG GP PRACTICE,28254824,-265.03
Department of Health,NHS Barnsley CCG,31/07/2019,C&M-GMS Voluntary Levy,PRC DELEGATED CO-COMMISSIONING,NHS BARNSLEY CCG GP PRACTICE,28254824,-46.38
Department of Health,NHS Barnsley CCG,31/07/2019,ME - GMS TPS Added Years Adj EEs,PRC DELEGATED CO-COMMISSIONING,NHS BARNSLEY CCG GP PRACTICE,28254824,-825.00
Department of Health,NHS Barnsley CCG,31/07/2019,ME-GMS GP Pension EEs,PRC DELEGATED CO-COMMISSIONING,NHS BARNSLEY CCG GP PRACTICE,28254824,"-13,424.56"
Department of Health,NHS Barnsley CCG,31/07/2019,ME-GMS GP Pension ERs Adjustments,PRC DELEGATED CO-COMMISSIONING,NHS BARNSLEY CCG GP PRACTICE,28254824,"-11,482.44"
Department of Health,NHS Barnsley CCG,31/07/2019,C&M-GMS DES Minor Surgery,PRC DELEGATED CO-COMMISSIONING,NHS BARNSLEY CCG GP PRACTICE,28254825,"1,576.94"
Department of Health,NHS Barnsley CCG,31/07/2019,C&M-GMS Global Sum,PRC DELEGATED CO-COMMISSIONING,NHS BARNSLEY CCG GP PRACTICE,28254825,"62,330.18"
Department of Health,NHS Barnsley CCG,31/07/2019,C&M-GMS PCN DES Participation,PRC DELEGATED CO-COMMISSIONING,NHS BARNSLEY CCG GP PRACTICE,28254825,"3,842.16"
Department of Health,NHS Barnsley CCG,31/07/2019,C&M-GMS Prem Notional Rent,PRC DELEGATED CO-COMMISSIONING,NHS BARNSLEY CCG GP PRACTICE,28254825,"8,873.23"
Department of Health,NHS Barnsley CCG,31/07/2019,C&M-GMS QOF Aspiration,PRC DELEGATED CO-COMMISSIONING,NHS BARNSLEY CCG GP PRACTICE,28254825,"6,864.29"
Department of Health,NHS Barnsley CCG,31/07/2019,Hcare Srv Rec Fdtn Trust-Contract Baseline,INTERMEDIATE CARE,SOUTH WEST YORKSHIRE PARTNERSHIP NHS FOUNDATION TRUST,27966745,"1,286,999.00"
Department of Health,NHS Barnsley CCG,31/07/2019,Hcare Srv Rec Fdtn Trust-CQUIN,COMMUNITY SERVICES,SOUTH WEST YORKSHIRE PARTNERSHIP NHS FOUNDATION TRUST,27966750,"7,101.50"
Department of Health,NHS Barnsley CCG,31/07/2019,Hcare Srv Rec Fdtn Trust-CQUIN,LEARNING DIFFICULTIES,SOUTH WEST YORKSHIRE PARTNERSHIP NHS FOUNDATION TRUST,27966750,"1,089.50"
Department of Health,NHS Barnsley CCG,31/07/2019,Hcare Srv Rec Fdtn Trust-CQUIN,MENTAL HEALTH SERVICES - ADULTS,SOUTH WEST YORKSHIRE PARTNERSHIP NHS FOUNDATION TRUST,27966750,"12,122.50"
Department of Health,NHS Barnsley CCG,31/07/2019,Hcare Srv Rec Fdtn Trust-CQUIN,MENTAL HEALTH SERVICES - OLDER PEOPLE,SOUTH WEST YORKSHIRE PARTNERSHIP NHS FOUNDATION TRUST,27966750,"1,408.50"
Department of Health,NHS Barnsley CCG,31/07/2019,Hcare Srv Rec Fdtn Trust-Contract Baseline,COMMUNITY SERVICES,SOUTH WEST YORKSHIRE PARTNERSHIP NHS FOUNDATION TRUST,27966750,"1,136,201.00"
Department of Health,NHS Barnsley CCG,31/07/2019,Hcare Srv Rec Fdtn Trust-Contract Baseline,LEARNING DIFFICULTIES,SOUTH WEST YORKSHIRE PARTNERSHIP NHS FOUNDATION TRUST,27966750,"174,345.00"
Department of Health,NHS Barnsley CCG,31/07/2019,Hcare Srv Rec Fdtn Trust-Contract Baseline,MENTAL HEALTH SERVICES - ADULTS,SOUTH WEST YORKSHIRE PARTNERSHIP NHS FOUNDATION TRUST,27966750,"1,955,613.00"
Department of Health,NHS Barnsley CCG,31/07/2019,Hcare Srv Rec Fdtn Trust-Contract Baseline,MENTAL HEALTH SERVICES - OLDER PEOPLE,SOUTH WEST YORKSHIRE PARTNERSHIP NHS FOUNDATION TRUST,27966750,"239,751.00"
Department of Health,NHS Barnsley CCG,31/07/2019,Hcare Srv Rec Fdtn Trust-Non Contract,COMMUNITY SERVICES,SOUTH WEST YORKSHIRE PARTNERSHIP NHS FOUNDATION TRUST,27966750,"67,448.00"
Department of Health,NHS Barnsley CCG,31/07/2019,Clinical&Medical-Commercial Sector,NCAS/OATS,SPAMEDICA LTD,28047172,"91,784.48"
Department of Health,NHS Barnsley CCG,31/07/2019,C&M-PMS Contract Value,PRC DELEGATED CO-COMMISSIONING,NHS BARNSLEY CCG GP PRACTICE,28012620,"80,463.74"
Department of Health,NHS Barnsley CCG,31/07/2019,C&M-PMS PCN DES Participation,PRC DELEGATED CO-COMMISSIONING,NHS BARNSLEY CCG GP PRACTICE,28012620,"4,450.83"
Department of Health,NHS Barnsley CCG,31/07/2019,C&M-PMS Prem Actual Rent,PRC DELEGATED CO-COMMISSIONING,NHS BARNSLEY CCG GP PRACTICE,28012620,319.38
Department of Health,NHS Barnsley CCG,31/07/2019,C&M-PMS Prem Healthcentre Rent,PRC DELEGATED CO-COMMISSIONING,NHS BARNSLEY CCG GP PRACTICE,28012620,"21,462.45"
Department of Health,NHS Barnsley CCG,31/07/2019,C&M-PMS QOF Aspiration,PRC DELEGATED CO-COMMISSIONING,NHS BARNSLEY CCG GP PRACTICE,28012620,"6,461.55"
Department of Health,NHS Barnsley CCG,31/07/2019,C&M-APMS LES GP Comm Incentive Sch,COMMISSIONING SCHEMES,NHS BARNSLEY CCG GP PRACTICE,28068153,"15,519.12"
Department of Health,NHS Barnsley CCG,31/07/2019,C&M-PMS LES Referral Management,COMMISSIONING SCHEMES,NHS BARNSLEY CCG GP PRACTICE,28068153,"13,120.71"
Department of Health,NHS Barnsley CCG,31/07/2019,Clinical&Medical-Clinical Other,COMMISSIONING SCHEMES,NHS BARNSLEY CCG GP PRACTICE,28068153,"4,975.52"
Department of Health,NHS Barnsley CCG,31/07/2019,C&M-PMS Contract Value,PRC DELEGATED CO-COMMISSIONING,NHS BARNSLEY CCG GP PRACTICE,28018596,"48,068.27"
Department of Health,NHS Barnsley CCG,31/07/2019,C&M-PMS PCN DES Participation,PRC DELEGATED CO-COMMISSIONING,NHS BARNSLEY CCG GP PRACTICE,28018596,"2,635.14"
Department of Health,NHS Barnsley CCG,31/07/2019,C&M-PMS PCO Other,PRC DELEGATED CO-COMMISSIONING,NHS BARNSLEY CCG GP PRACTICE,28018596,336.90
Department of Health,NHS Barnsley CCG,31/07/2019,C&M-PMS Prem Notional Rent,PRC DELEGATED CO-COMMISSIONING,NHS BARNSLEY CCG GP PRACTICE,28018596,"28,500.00"
Department of Health,NHS Barnsley CCG,31/07/2019,C&M-PMS Prem Rates,PRC DELEGATED CO-COMMISSIONING,NHS BARNSLEY CCG GP PRACTICE,28018596,"1,625.00"
Department of Health,NHS Barnsley CCG,31/07/2019,C&M-PMS Prem Water Rates,PRC DELEGATED CO-COMMISSIONING,NHS BARNSLEY CCG GP PRACTICE,28018596,317.13
Department of Health,NHS Barnsley CCG,31/07/2019,C&M-PMS QOF Aspiration,PRC DELEGATED CO-COMMISSIONING,NHS BARNSLEY CCG GP PRACTICE,28018596,"4,097.25"
Department of Health,NHS Barnsley CCG,31/07/2019,Hcare Srv Rec NHS Trust-Contract Baseline,AMBULANCE SERVICES,YORKSHIRE AMBULANCE SERVICE NHS TRUST,27935662,"728,818.00"
Department of Health,NHS Barnsley CCG,31/07/2019,Hcare Srv Rec NHS Trust-Contract Baseline,NHS 111,YORKSHIRE AMBULANCE SERVICE NHS TRUST,27935664,"65,235.31"
Department of Health,NHS Barnsley CCG,31/07/2019,Hcare Srv Rec NHS Trust-CQUIN,PATIENT TRANSPORT,YORKSHIRE AMBULANCE SERVICE NHS TRUST,27966832,176.43
Department of Health,NHS Barnsley CCG,31/07/2019,Hcare Srv Rec NHS Trust-Contract Baseline,PATIENT TRANSPORT,YORKSHIRE AMBULANCE SERVICE NHS TRUST,27966832,"28,226.67"
Department of Health,NHS Barnsley CCG,31/07/2019,Hcare Srv Rec NHS Trust-Contract Baseline,PATIENT TRANSPORT,YORKSHIRE AMBULANCE SERVICE NHS TRUST,27966834,"139,314.32"
Department of Health,NHS Barnsley CCG,30/06/2019,Hcare Srv Rec Fdtn Trust-Contract Baseline,ACUTE COMMISSIONING,BARNSLEY HOSPITAL NHS FOUNDATION TRUST,27766670,"595,384.00 "
Department of Health,NHS Barnsley CCG,30/06/2019,Hcare Srv Rec Fdtn Trust-Contract Baseline,ACUTE COMMISSIONING,BARNSLEY HOSPITAL NHS FOUNDATION TRUST,27766675,"13,100,226.00 "
Department of Health,NHS Barnsley CCG,30/06/2019,Hcare Srv Rec Fdtn Trust-Contract Baseline,INTERMEDIATE CARE,BARNSLEY HOSPITAL NHS FOUNDATION TRUST,27766677,"227,319.00 "
Department of Health,NHS Barnsley CCG,30/06/2019,Hcare Srv Rec Fdtn Trust-Contract Baseline,LONG TERM CONDITIONS,BARNSLEY HOSPITAL NHS FOUNDATION TRUST,27766677,"159,065.00 "
Department of Health,NHS Barnsley CCG,30/06/2019,Telecoms-Data lines,ADMINISTRATION & BUSINESS SUPPORT,BARNSLEY HOSPITAL NHS FOUNDATION TRUST,27718147,"74,616.00 "
Department of Health,NHS Barnsley CCG,30/06/2019,Voids and Subsidies,RECHARGES NHS PROPERTY SERVICES LTD,COMMUNITY HEALTH PARTNERSHIPS LTD,27895000,"53,033.71 "
Department of Health,NHS Barnsley CCG,30/06/2019,Hcare Srv Rec Fdtn Trust-Contract Baseline,ACUTE COMMISSIONING,DONCASTER AND BASSETLAW HOSPITALS NHS FOUNDATION TRUST,27739515,"(364,898.00)"
Department of Health,NHS Barnsley CCG,30/06/2019,Hcare Srv Rec Fdtn Trust-CQUIN,ACUTE COMMISSIONING,DONCASTER AND BASSETLAW HOSPITALS NHS FOUNDATION TRUST,27739589,"2,483.00 "
Department of Health,NHS Barnsley CCG,30/06/2019,Hcare Srv Rec Fdtn Trust-Contract Baseline,ACUTE COMMISSIONING,DONCASTER AND BASSETLAW HOSPITALS NHS FOUNDATION TRUST,27739589,"432,508.00 "
Department of Health,NHS Barnsley CCG,30/06/2019,Hcare Srv Rec Fdtn Trust-CQUIN,ACUTE COMMISSIONING,SHEFFIELD CHILDRENS NHS FOUNDATION TRUST,27739472,966.80 
Department of Health,NHS Barnsley CCG,30/06/2019,Hcare Srv Rec Fdtn Trust-Contract Baseline,ACUTE COMMISSIONING,SHEFFIELD CHILDRENS NHS FOUNDATION TRUST,27739472,"157,714.20 "
Department of Health,NHS Barnsley CCG,30/06/2019,Hcare Srv Rec Fdtn Trust-Contract Baseline,ACUTE COMMISSIONING,SHEFFIELD TEACHING HOSPITALS NHS FOUNDATION TRUST,27802654,"1,923,125.00 "
Department of Health,NHS Barnsley CCG,30/06/2019,Hcare Srv Rec Fdtn Trust-Contract Baseline,ACUTE COMMISSIONING,SHEFFIELD TEACHING HOSPITALS NHS FOUNDATION TRUST,27802677,"183,041.00 "
Department of Health,NHS Barnsley CCG,30/06/2019,Hcare Srv Rec Fdtn Trust-CQUIN,COMMUNITY SERVICES,SOUTH WEST YORKSHIRE PARTNERSHIP NHS FOUNDATION TRUST,27657262,"102,295.00 "
Department of Health,NHS Barnsley CCG,30/06/2019,Hcare Srv Rec Fdtn Trust-CQUIN,IMPROVING ACCESS TO PSYCHOLOGICAL THERAPIES,SOUTH WEST YORKSHIRE PARTNERSHIP NHS FOUNDATION TRUST,27657262,"8,910.00 "
Department of Health,NHS Barnsley CCG,30/06/2019,Hcare Srv Rec Fdtn Trust-CQUIN,LEARNING DIFFICULTIES,SOUTH WEST YORKSHIRE PARTNERSHIP NHS FOUNDATION TRUST,27657262,"15,191.00 "
Department of Health,NHS Barnsley CCG,30/06/2019,Hcare Srv Rec Fdtn Trust-CQUIN,MENTAL HEALTH SERVICES - ADULTS,SOUTH WEST YORKSHIRE PARTNERSHIP NHS FOUNDATION TRUST,27657262,"162,414.00 "
Department of Health,NHS Barnsley CCG,30/06/2019,Hcare Srv Rec Fdtn Trust-CQUIN,MENTAL HEALTH SERVICES - OLDER PEOPLE,SOUTH WEST YORKSHIRE PARTNERSHIP NHS FOUNDATION TRUST,27657262,"19,036.00 "
Department of Health,NHS Barnsley CCG,30/06/2019,Hcare Srv Rec Fdtn Trust-Non Contract,HOSPICES,SOUTH WEST YORKSHIRE PARTNERSHIP NHS FOUNDATION TRUST,27856233,"202,344.00 "
Department of Health,NHS Barnsley CCG,30/06/2019,C&M-APMS LES GP Comm Incentive Sch,COMMISSIONING SCHEMES,NHS BARNSLEY CCG GP PRACTICE,27883831,"19,272.92 "
Department of Health,NHS Barnsley CCG,30/06/2019,C&M-PMS LES Referral Management,COMMISSIONING SCHEMES,NHS BARNSLEY CCG GP PRACTICE,27883831,"18,922.50 "
Department of Health,NHS Barnsley CCG,30/06/2019,Clinical&Medical-Clinical Other,COMMISSIONING SCHEMES,NHS BARNSLEY CCG GP PRACTICE,27883831,"12,463.16 "
Department of Health,NHS Barnsley CCG,30/06/2019,C&M-APMS LES GP Comm Incentive Sch,COMMISSIONING SCHEMES,NHS BARNSLEY CCG GP PRACTICE,27883851,"41,780.94 "
Department of Health,NHS Barnsley CCG,30/06/2019,Clinical&Medical-Clinical Other,COMMISSIONING SCHEMES,NHS BARNSLEY CCG GP PRACTICE,27883851,"8,926.05 "
Department of Health,NHS Barnsley CCG,30/06/2019,C&M-GMS LES Medicine Management,COMMISSIONING SCHEMES,NHS BARNSLEY CCG GP PRACTICE,27872687,"58,448.00 "
Department of Health,NHS Barnsley CCG,30/06/2019,C&M-APMS LES GP Comm Incentive Sch,COMMISSIONING SCHEMES,NHS BARNSLEY CCG GP PRACTICE,27883846,"23,734.34 "
Department of Health,NHS Barnsley CCG,30/06/2019,C&M-PMS LES Referral Management,COMMISSIONING SCHEMES,NHS BARNSLEY CCG GP PRACTICE,27883846,"23,302.81 "
Department of Health,NHS Barnsley CCG,30/06/2019,Clinical&Medical-Clinical Other,COMMISSIONING SCHEMES,NHS BARNSLEY CCG GP PRACTICE,27883846,"16,933.38 "
Department of Health,NHS Barnsley CCG,30/06/2019,Other Transport Costs,PATIENT TRANSPORT,PREMIER CARE DIRECT LTD,27883693,"35,025.67 "
Department of Health,NHS Barnsley CCG,30/06/2019,C&M-APMS LES GP Comm Incentive Sch,COMMISSIONING SCHEMES,NHS BARNSLEY CCG GP PRACTICE,27883842,"11,152.76 "
Department of Health,NHS Barnsley CCG,30/06/2019,C&M-PMS LES Referral Management,COMMISSIONING SCHEMES,NHS BARNSLEY CCG GP PRACTICE,27883842,"10,949.98 "
Department of Health,NHS Barnsley CCG,30/06/2019,Clinical&Medical-Clinical Other,COMMISSIONING SCHEMES,NHS BARNSLEY CCG GP PRACTICE,27883842,"7,410.83 "
Department of Health,NHS Barnsley CCG,30/06/2019,C&M-APMS LES GP Comm Incentive Sch,COMMISSIONING SCHEMES,NHS BARNSLEY CCG GP PRACTICE,27883821,"16,469.39 "
Department of Health,NHS Barnsley CCG,30/06/2019,C&M-PMS LES Referral Management,COMMISSIONING SCHEMES,NHS BARNSLEY CCG GP PRACTICE,27883821,"16,169.95 "
Department of Health,NHS Barnsley CCG,30/06/2019,Clinical&Medical-Clinical Other,COMMISSIONING SCHEMES,NHS BARNSLEY CCG GP PRACTICE,27883821,"13,029.77 "
,,,,,,,"30,635,492.43"
